lending/lending_fUSD_20250210
["ID","MTS","AMOUNT","RATE_DAILY","PERIOD"]
[352574818,1739175053879,-516.4,0.00013698,2]
[352574819,1739175053888,-516.4,0.00013698,2]
[352574820,1739175053901,-516.4,0.00013698,2]
[352574821,1739175053911,-516.4,0.00013698,2]
[352574822,1739175053920,-516.4,0.00013698,2]
[352574823,1739175053931,-516.53063081,0.00013698,2]
[352574824,1739175053940,-1305.19,0.00013698,4]
[352574825,1739175053950,-3708.40573326,0.00013698,2]
[352574826,1739175053959,-500.0,0.00013699,2]
[352574827,1739175053969,-500.0,0.00013699,2]
[352574828,1739175053978,-500.0,0.00013699,2]
[352574829,1739175053987,-500.0,0.00013699,2]
[352574830,1739175053997,-500.0,0.00013699,2]
[352574831,1739175054006,-500.0,0.00013699,2]
[352574832,1739175054016,-500.0,0.00013699,2]
[352574833,1739175054026,-500.0,0.00013699,2]
[352574834,1739175054035,-500.0,0.00013699,2]
[352574835,1739175054046,-500.0,0.00013699,2]
[352574836,1739175054055,-500.0,0.00013699,2]
[352574837,1739175054064,-711.13,0.00013699,2]
[352574838,1739175054074,-711.13,0.00013699,2]
[352574839,1739175054083,-711.13,0.00013699,2]
[352574840,1739175054092,-711.13,0.00013699,2]
[352574841,1739175054102,-711.13,0.00013699,2]
[352574842,1739175054111,-711.13,0.00013699,2]
[352574843,1739175054120,-711.13,0.00013699,2]
[352574844,1739175054129,-711.13,0.00013699,2]
[352574845,1739175054139,-711.13,0.00013699,2]
[352574846,1739175054150,-711.13,0.00013699,2]
[352574847,1739175054161,-711.13,0.00013699,2]
[352574848,1739175054171,-711.13,0.00013699,2]
[352574849,1739175054180,-711.13,0.00013699,2]
[352574850,1739175054190,-711.13,0.00013699,2]
[352574851,1739175054200,-711.13,0.00013699,2]
[352574852,1739175054209,-711.13,0.00013699,2]
[352574853,1739175054219,-711.13,0.00013699,2]
[352574854,1739175054229,-711.13,0.00013699,2]
[352574855,1739175054239,-711.13,0.00013699,2]
[352574856,1739175054249,-711.29561348,0.00013699,2]
[352574857,1739175054258,-278.52,0.00013699,2]
[352574858,1739175054268,-311.763054,0.00013699,2]
[352574859,1739175054278,-311.763054,0.00013699,2]
[352574860,1739175054288,-311.763054,0.00013699,2]
[352574861,1739175054301,-311.763054,0.00013699,2]
[352574862,1739175054311,-311.763054,0.00013699,2]
[352574863,1739175054321,-311.763054,0.00013699,2]
[352574864,1739175054331,-311.763054,0.00013699,2]
[352574865,1739175054340,-311.763054,0.00013699,2]
[352574866,1739175054350,-311.763054,0.00013699,2]
[352574867,1739175054360,-311.763054,0.00013699,2]
[352574868,1739175054370,-311.763054,0.00013699,2]
[352574869,1739175054380,-311.763054,0.00013699,2]
[352574870,1739175054389,-311.763054,0.00013699,2]
[352574871,1739175054399,-311.763054,0.00013699,2]
[352574872,1739175054410,-311.763054,0.00013699,2]
[352574873,1739175054424,-311.763054,0.00013699,2]
[352574874,1739175054434,-500.0,0.00013699,13]
[352574875,1739175054443,-481.0,0.00013699,13]
[352574876,1739175054455,-500.0,0.00013699,13]
[352574877,1739175054466,-400.0,0.00013699,13]
[352574878,1739175054479,-500.0,0.00013699,2]
[352574879,1739175054491,-200.0,0.00013699,2]
[352574880,1739175054503,-500.0,0.00013699,2]
[352574881,1739175054514,-500.0,0.00013699,2]
[352574882,1739175054525,-417.21764954,0.00013699,2]
[352574883,1739175054536,-486.51085012,0.00013699,2]
[352574884,1739175054549,-393.554382,0.00013699,2]
[352574885,1739175054560,-226.66743,0.00013699,2]
[352574886,1739175054572,-395.938598,0.00013699,2]
[352574887,1739175054584,-395.938602,0.00013699,2]
[352574888,1739175054595,-583.179096,0.00013699,2]
[352574889,1739175054607,-583.179105,0.00013699,2]
[352574890,1739175054619,-345.833307,0.00013699,2]
[352574891,1739175054630,-345.833298,0.00013699,2]
[352574892,1739175054641,-204.922804,0.000137,2]
[352574893,1739175054651,-204.922804,0.000137,2]
[352574894,1739175054661,-454.79,0.000137,2]
[352574895,1739175054674,-454.79,0.000137,2]
[352574896,1739175054686,-2800.0,0.00013715,2]
[352574897,1739175054697,-151.0,0.00013715,2]
[352574898,1739175054710,-749.507924,0.00013715,2]
[352574899,1739175054722,-749.50792,0.00013715,2]
[352574900,1739175054734,-249.343838,0.00013715,2]
[352574901,1739175054747,-9234.295174,0.00013715,2]
[352574902,1739175054761,-9234.295164,0.00013715,2]
[352574903,1739175054772,-173.851926,0.00013715,2]
[352574904,1739175054787,-173.851928,0.00013715,2]
[352574905,1739175054802,-224.583997,0.00013715,2]
[352574906,1739175054814,-224.583995,0.00013715,2]
[352574907,1739175054829,-255.169646,0.00013715,2]
[352574908,1739175054840,-277.02,0.00013767,2]
[352574909,1739175054859,-280.907553,0.00013854,2]
[352574910,1739175054873,-151.0,0.00013854,2]
[352574911,1739175054885,-311.763054,0.00013854,2]
[352574912,1739175054898,-311.763054,0.00013854,2]
[352574913,1739175054909,-151.0,0.00013854,2]
[352574914,1739175054920,-151.0,0.00013854,2]
[352574915,1739175054933,-1408.008449,0.00013854,2]
[352574916,1739175054946,-982.904304,0.00013854,2]
[352574917,1739175054961,-982.904303,0.00013854,2]
[352574918,1739175054973,-1408.008453,0.00013854,2]
[352574919,1739175054985,-151.0,0.00013854,2]
[352574920,1739175054997,-336.820439,0.00013854,2]
[352574921,1739175055008,-336.820436,0.00013854,2]
[352574922,1739175055018,-495.541542,0.00013854,2]
[352574923,1739175055029,-152.601374,0.00013854,2]
[352574924,1739175055039,-495.541549,0.00013854,2]
[352574925,1739175055053,-1132.65944423,0.00013854,2]
[352574926,1739175055067,-12921.16989088,0.00013854,2]
[352574927,1739175055080,-152.0,0.00013881,16]
[352574928,1739175055091,-1305.19,0.00013972,4]
[352574929,1739175055101,-1600.0,0.00014,4]
[352574930,1739175055111,-179.315263,0.00014,2]
[352574931,1739175055122,-179.315263,0.00014,2]
[352574932,1739175055133,-152.0,0.0001408,17]
[352574933,1739175055145,-223.054,0.00014219,2]
[352574934,1739175055156,-223.054,0.00014219,2]
[352574935,1739175055168,-163.119194,0.00014219,2]
[352574936,1739175055178,-343.083804,0.00014219,2]
[352574937,1739175055189,-343.083804,0.00014219,2]
[352574938,1739175055199,-1000.0,0.00014219,2]
[352574939,1739175055209,-1000.0,0.00014219,2]
[352574940,1739175055221,-1000.0,0.00014219,2]
[352574941,1739175055231,-1000.0,0.00014219,2]
[352574942,1739175055241,-1000.0,0.00014219,2]
[352574943,1739175055252,-1000.0,0.00014219,2]
[352574944,1739175055262,-1000.0,0.00014219,2]
[352574945,1739175055272,-1000.0,0.00014219,2]
[352574946,1739175055282,-1000.0,0.00014219,2]
[352574947,1739175055293,-1001.67931525,0.00014219,2]
[352574948,1739175055304,-1305.19,0.00014246,4]
[352574949,1739175055315,-1000.0,0.00014247,2]
[352574950,1739175055325,-1097.37019845,0.00014247,2]
[352574951,1739175055336,-152.0,0.00014279,18]
[352574952,1739175055347,-219.27151103,0.00014279,5]
[352574953,1739175055357,-9681.50505465,0.00014349,2]
[352574954,1739175055368,-503.21361119,0.00014349,2]
[352574955,1739175055378,-3917.61600528,0.00014349,2]
[352574956,1739175055388,-7286.29929903,0.00014486,2]
[352574957,1739175055399,-151.0,0.00014486,2]
[352574958,1739175055409,-164.0,0.00014486,2]
[352574959,1739175055420,-164.0,0.00014486,2]
[352574960,1739175055431,-2000.0,0.00014506,4]
[352574961,1739175055442,-151.0,0.00014506,2]
[352574962,1739175055453,-290.385249,0.00014506,2]
[352574963,1739175055464,-290.385249,0.00014506,2]
[352574964,1739175055475,-1305.19,0.0001452,4]
[352574965,1739175055486,-1305.19,0.00014794,4]
[352574966,1739175055497,-200.83621461,0.000148,2]
[352574967,1739175055508,-1189.56,0.00014813,2]
[352574968,1739175055519,-214.0,0.0001482,2]
[352574969,1739175055529,-1132.65944423,0.00014843,2]
[352574970,1739175055540,-12921.16989088,0.00014843,2]
[352574971,1739175055552,-400.0,0.0001497,2]
[352574972,1739175055562,-400.36266894,0.0001497,2]
[352574973,1739175055573,-300.0,0.00014999,2]
[352574974,1739175055583,-300.0,0.00014999,2]
[352574975,1739175055593,-11992.3067191,0.00015,2]
[352574976,1739175055604,-75000.0,0.00015,2]
[352574977,1739175055615,-35841.8,0.00015,2]
[352574978,1739175055626,-10000.0,0.00015,2]
[352574979,1739175055637,-927.21,0.00015,10]
[352574980,1739175055648,-151.0,0.00015,2]
[352574981,1739175055660,-151.0,0.00015,2]
[352574982,1739175055670,-185.903528,0.00015,2]
[352574983,1739175055681,-396.356462,0.00015,2]
[352574984,1739175055692,-396.356462,0.00015,2]
[352574985,1739175055703,-600.0,0.00015,2]
[352574986,1739175055714,-9499.0,0.00015,2]
[352574987,1739175055724,-151.0,0.00015,2]
[352574988,1739175055735,-223.054,0.00015,2]
[352574989,1739175055746,-223.054,0.00015,2]
[352574990,1739175055757,-223.054,0.00015,2]
[352574991,1739175055767,-223.054,0.00015,2]
[352574992,1739175055779,-151.0,0.00015,2]
[352574993,1739175055792,-151.0,0.00015,2]
[352574994,1739175055804,-164.0,0.00015,2]
[352574995,1739175055817,-164.0,0.00015,2]
[352574996,1739175055829,-164.0,0.00015,2]
[352574997,1739175055839,-164.0,0.00015,2]
[352574998,1739175055850,-151.0,0.00015,2]
[352574999,1739175055861,-290.385249,0.00015,2]
[352575000,1739175055871,-290.385249,0.00015,2]
[352575001,1739175055882,-280.907554,0.00015,2]
[352575002,1739175055892,-151.0,0.00015,2]
[352575003,1739175055903,-311.763054,0.00015,2]
[352575004,1739175055913,-311.763053,0.00015,2]
[352575005,1739175055925,-179.315263,0.00015,2]
[352575006,1739175055936,-179.315271,0.00015,2]
[352575007,1739175055947,-343.083804,0.00015,2]
[352575008,1739175055957,-343.083804,0.00015,2]
[352575009,1739175055968,-1494.71,0.00015068,2]
[352575010,1739175055979,-1305.19,0.00015068,4]
[352575011,1739175055990,-300.0,0.00015068,2]
[352575012,1739175056000,-2800.0,0.00015085,2]
[352575013,1739175056011,-4973.0,0.000151,3]
[352575014,1739175056021,-500.0,0.00015189,2]
[352575015,1739175056032,-353.8363584,0.00015238,2]
[352575016,1739175056043,-1500.0,0.00015248,2]
[352575017,1739175056054,-262.925155,0.00015268,2]
[352575018,1739175056066,-290.385249,0.00015268,2]
[352575019,1739175056076,-290.38524252,0.00015268,2]
[352575020,1739175056087,-500.0,0.00015289,2]
[352575021,1739175056098,-173.61200865,0.000153,2]
[352575022,1739175056108,-1305.19,0.00015342,4]
[352575023,1739175056119,-214.0,0.0001537,2]
[352575024,1739175056130,-500.0,0.00015389,2]
[352575025,1739175056140,-500.0,0.00015489,2]
[352575026,1739175056151,-540.1086582,0.00015489,2]
[352575027,1739175056161,-303.86089537,0.00015499,2]
[352575028,1739175056171,-300.0,0.00015499,2]
[352575029,1739175056182,-75000.0,0.000155,3]
[352575030,1739175056193,-5554.0,0.000155,5]
[352575031,1739175056203,-500.0,0.00015589,2]
[352575032,1739175056214,-1305.19,0.00015616,4]
[352575033,1739175056224,-500.0,0.00015689,2]
[352575034,1739175056235,-3708.40573326,0.00015699,2]
[352575035,1739175056245,-500.0,0.00015789,2]
[352575036,1739175056256,-223.054,0.00015831,2]
[352575037,1739175056266,-223.054,0.00015831,2]
[352575038,1739175056277,-1132.65944423,0.00015831,2]
[352575039,1739175056287,-12921.16989088,0.00015831,2]
[352575040,1739175056297,-500.0,0.00015889,2]
[352575041,1739175056307,-1305.19,0.0001589,4]
[352575042,1739175056498,-1200.0,0.00015907,2]
[352575043,1739175056509,-500.0,0.00015907,2]
[352575044,1739175056518,-214.0,0.0001591,2]
[352575045,1739175056528,-500.0,0.00015989,2]
[352575046,1739175056537,-950.0,0.00016,6]
[352575047,1739175056548,-100000.0,0.00016,2]
[352575048,1739175056558,-36800.24860547,0.00016,3]
[352575049,1739175056567,-151.0,0.00016,2]
[352575050,1739175056577,-199.934357,0.00016,2]
[352575051,1739175056586,-396.356462,0.00016,2]
[352575052,1739175056595,-396.356462,0.00016,2]
[352575053,1739175056604,-151.266672,0.00016,2]
[352575054,1739175056614,-2000.0,0.00016,2]
[352575055,1739175056623,-3297.579647,0.0001601,2]
[352575056,1739175056632,-172.55947854,0.00016019,2]
[352575057,1739175056642,-500.0,0.00016089,2]
[352575058,1739175056652,-1305.19,0.00016164,4]
[352575059,1739175056661,-500.0,0.00016189,2]
[352575060,1739175056670,-589.7724,0.000162,2]
[352575061,1739175056679,-500.0,0.00016289,2]
[352575062,1739175056688,-2346.0,0.00016379,6]
[352575063,1739175056698,-500.0,0.00016389,2]
[352575064,1739175056707,-2350.87557814,0.00016397,8]
[352575065,1739175056716,-1500.0,0.000164,30]
[352575066,1739175056725,-200.83621461,0.00016433,2]
[352575067,1739175056735,-502.03674178,0.00016438,2]
[352575068,1739175056744,-1000.0,0.00016438,60]
[352575069,1739175056754,-932.81584938,0.00016438,60]
[352575070,1739175056763,-1149.29,0.00016438,2]
[352575071,1739175056772,-1149.29,0.00016438,2]
[352575072,1739175056781,-1149.29,0.00016438,2]
[352575073,1739175056792,-1149.29,0.00016438,2]
[352575074,1739175056804,-1149.29,0.00016438,2]
[352575075,1739175056814,-1149.29,0.00016438,2]
[352575076,1739175056823,-1149.29,0.00016438,2]
[352575077,1739175056832,-1149.29,0.00016438,2]
[352575078,1739175056841,-1149.29,0.00016438,2]
[352575079,1739175056850,-1149.29,0.00016438,2]
[352575080,1739175056859,-1149.29,0.00016438,2]
[352575081,1739175056868,-1149.29,0.00016438,2]
[352575082,1739175056880,-1149.29,0.00016438,2]
[352575083,1739175056889,-1149.29,0.00016438,2]
[352575084,1739175056899,-1149.29,0.00016438,2]
[352575085,1739175056908,-1149.29,0.00016438,2]
[352575086,1739175056917,-1149.29,0.00016438,2]
[352575087,1739175056926,-1149.29,0.00016438,2]
[352575088,1739175056935,-1149.29,0.00016438,2]
[352575089,1739175056945,-1149.29,0.00016438,2]
[352575090,1739175056955,-1149.29,0.00016438,2]
[352575091,1739175056964,-1149.29,0.00016438,2]
[352575092,1739175056974,-1149.29,0.00016438,2]
[352575093,1739175056984,-1149.31148373,0.00016438,2]
[352575094,1739175056993,-1305.19,0.00016438,4]
[352575095,1739175057002,-150.0,0.00016438,2]
[352575096,1739175057011,-300.0,0.00016438,2]
[352575097,1739175057020,-2800.0,0.00016455,2]
[352575098,1739175057030,-214.0,0.0001646,2]
[352575099,1739175057039,-500.0,0.00016489,2]
[352575100,1739175057050,-3390.39,0.000165,2]
[352575101,1739175057059,-14544.14720703,0.000165,2]
[352575102,1739175057069,-2000.0,0.00016546,2]
[352575103,1739175057078,-150.0,0.00016575,2]
[352575104,1739175057087,-500.0,0.00016589,2]
[352575105,1739175057096,-746.78,0.00016658,30]
[352575106,1739175057106,-272.83143,0.00016688,7]
[352575107,1739175057115,-500.0,0.00016689,2]
[352575108,1739175057125,-1305.19,0.00016712,4]
[352575109,1739175057134,-150.0,0.00016712,2]
[352575110,1739175057144,-176.34,0.00016712,2]
[352575111,1739175057154,-500.0,0.00016789,2]
[352575112,1739175057164,-425.79,0.00016813,2]
[352575113,1739175057174,-317.03,0.00016813,2]
[352575114,1739175057184,-1132.65944423,0.0001682,2]
[352575115,1739175057194,-12921.16989088,0.0001682,2]
[352575116,1739175057204,-150.0,0.00016849,2]
[352575117,1739175057215,-272.83143,0.00016888,7]
[352575118,1739175057224,-500.0,0.00016889,2]
[352575119,1739175057234,-3256.79,0.000169,7]
[352575120,1739175057244,-345353.97121525,0.000169,3]
[352575121,1739175057254,-151.0,0.000169,2]
[352575122,1739175057264,-396.356462,0.000169,2]
[352575123,1739175057274,-396.356462,0.000169,2]
[352575124,1739175057284,-2000.0,0.00016903,4]
[352575125,1739175057294,-577.5817933,0.00016939,2]
[352575126,1739175057304,-378.3857847,0.00016939,2]
[352575127,1739175057315,-94081.46370714,0.0001695,2]
[352575128,1739175057325,-190.71315552,0.00016984,2]
[352575129,1739175057334,-1305.19,0.00016986,4]
[352575130,1739175057343,-257.16232368,0.00016986,2]
[352575131,1739175057353,-500.0,0.00016989,2]
[352575132,1739175057362,-650.0,0.00017,2]
[352575133,1739175057372,-33800.0,0.00017,20]
[352575134,1739175057382,-214.0,0.0001701,2]
[352575135,1739175057392,-1189.56,0.0001701,2]
[352575136,1739175057401,-272.83143,0.00017088,7]
[352575137,1739175057411,-500.0,0.00017089,2]
[352575138,1739175057420,-173.61200865,0.000171,2]
[352575139,1739175057429,-278.52,0.00017123,2]
[352575140,1739175057439,-500.0,0.00017189,2]
[352575141,1739175057450,-1494.71,0.0001726,4]
[352575142,1739175057460,-1305.19,0.0001726,4]
[352575143,1739175057469,-1200.0,0.00017277,2]
[352575144,1739175057478,-500.0,0.00017277,2]
[352575145,1739175057488,-272.83143,0.00017288,7]
[352575146,1739175057497,-500.0,0.00017289,2]
[352575147,1739175057506,-500.0,0.00017389,2]
[352575148,1739175057515,-614.51916189,0.000174,2]
[352575149,1739175057525,-272.83143,0.00017488,7]
[352575150,1739175057534,-500.0,0.00017489,2]
[352575151,1739175057543,-500.0,0.000175,2]
[352575152,1739175057553,-500.0,0.000175,2]
[352575153,1739175057563,-500.0,0.000175,2]
[352575154,1739175057572,-500.0,0.000175,2]
[352575155,1739175057581,-500.0,0.000175,2]
[352575156,1739175057590,-500.0,0.000175,2]
[352575157,1739175057599,-500.0,0.000175,2]
[352575158,1739175057607,-500.0,0.000175,2]
[352575159,1739175057616,-200.0,0.000175,2]
[352575160,1739175057625,-5339.64725704,0.000175,2]
[352575161,1739175057635,-254.8,0.000175,2]
[352575162,1739175057643,-203.0,0.0001752,2]
[352575163,1739175057652,-1305.19,0.00017534,4]
[352575164,1739175057662,-2800.0,0.00017551,2]
[352575165,1739175057671,-214.0,0.0001756,2]
[352575166,1739175057680,-500.0,0.00017589,2]
[352575167,1739175057689,-20789.55065855,0.0001764,2]
[352575168,1739175057698,-272.83143,0.00017688,7]
[352575169,1739175057707,-500.0,0.00017689,2]
[352575170,1739175057716,-3708.40573326,0.00017699,2]
[352575171,1739175057725,-3390.39,0.000177,2]
[352575172,1739175057735,-1204.02570802,0.00017725,15]
[352575173,1739175057744,-16948.96,0.00017728,2]
[352575174,1739175057754,-20789.55065854,0.0001778,2]
[352575175,1739175057763,-500.0,0.00017789,2]
[352575176,1739175057772,-1305.19,0.00017808,4]
[352575177,1739175057782,-1132.65944423,0.00017808,2]
[352575178,1739175057794,-12921.16989088,0.00017808,2]
[352575179,1739175057805,-272.83143,0.00017888,7]
[352575180,1739175057814,-500.0,0.00017889,2]
[352575181,1739175057823,-325409.69147753,0.000179,3]
[352575182,1739175057833,-20789.55065854,0.0001792,2]
[352575183,1739175057842,-500.0,0.00017989,2]
[352575184,1739175057851,-2331.44088557,0.00018,2]
[352575185,1739175057860,-14316.90459163,0.00018,7]
[352575186,1739175057869,-950.0,0.00018,8]
[352575187,1739175057879,-5000.0,0.00018,2]
[352575188,1739175057888,-26420.24,0.00018,2]
[352575189,1739175057896,-1854.56,0.00018,8]
[352575190,1739175057906,-10000.0,0.00018,2]
[352575191,1739175057915,-200.0,0.00018,2]
[352575192,1739175057925,-200.0,0.00018,2]
[352575193,1739175057934,-200.0,0.00018,2]
[352575194,1739175057943,-200.0,0.00018,2]
[352575195,1739175057954,-200.0,0.00018,2]
[352575196,1739175057963,-200.0,0.00018,2]
[352575197,1739175057972,-200.0,0.00018,2]
[352575198,1739175057982,-200.0,0.00018,2]
[352575199,1739175057991,-200.0,0.00018,2]
[352575200,1739175058000,-200.0,0.00018,2]
[352575201,1739175058009,-200.0,0.00018,2]
[352575202,1739175058019,-200.0,0.00018,2]
[352575203,1739175058028,-200.0,0.00018,2]
[352575204,1739175058038,-200.0,0.00018,2]
[352575205,1739175058048,-100000.0,0.00018,2]
[352575206,1739175058058,-151.0,0.00018,2]
[352575207,1739175058067,-13294.0,0.00018,2]
[352575208,1739175058076,-396.356462,0.00018,2]
[352575209,1739175058086,-396.356462,0.00018,2]
[352575210,1739175058095,-20789.55065854,0.0001806,2]
[352575211,1739175058104,-200.83621461,0.00018067,2]
[352575212,1739175058113,-1305.19,0.00018082,4]
[352575213,1739175058122,-2000.0,0.00018082,2]
[352575214,1739175058132,-200.0,0.00018082,2]
[352575215,1739175058141,-272.83143,0.00018088,7]
[352575216,1739175058150,-500.0,0.00018089,2]
[352575217,1739175058159,-884.65861,0.000181,2]
[352575218,1739175058168,-884.65861,0.000181,2]
[352575219,1739175058177,-7302.94996503,0.000181,2]
[352575220,1739175058186,-214.0,0.000181,2]
[352575221,1739175058195,-500.0,0.00018189,2]
[352575222,1739175058205,-589.7724,0.000182,2]
[352575223,1739175058214,-20789.55065854,0.000182,2]
[352575224,1739175058223,-272.83143,0.00018288,7]
[352575225,1739175058232,-500.0,0.00018289,2]
[352575226,1739175058241,-60000.0,0.000183,4]
[352575227,1739175058250,-20789.55065854,0.0001834,2]
[352575228,1739175058259,-396.356462,0.00018356,2]
[352575229,1739175058268,-396.356462,0.00018356,2]
[352575230,1739175058277,-1305.19,0.00018356,4]
[352575231,1739175058286,-34385.09,0.00018356,2]
[352575232,1739175058296,-1200.0,0.00018373,2]
[352575233,1739175058306,-500.0,0.00018373,2]
[352575234,1739175058315,-500.0,0.00018389,2]
[352575235,1739175058324,-614.51916188,0.0001846,2]
[352575236,1739175058333,-20789.55065854,0.0001848,2]
[352575237,1739175058342,-272.83143,0.00018488,7]
[352575238,1739175058351,-500.0,0.00018489,2]
[352575239,1739175058360,-500.0,0.00018577,2]
[352575240,1739175058369,-303.0,0.00018577,2]
[352575241,1739175058378,-500.0,0.00018577,2]
[352575242,1739175058387,-500.0,0.00018577,2]
[352575243,1739175058396,-500.0,0.00018577,2]
[352575244,1739175058405,-276.0,0.00018577,2]
[352575245,1739175058414,-200.0,0.00018577,2]
[352575246,1739175058423,-200.0,0.00018577,2]
[352575247,1739175058432,-200.0,0.00018577,2]
[352575248,1739175058441,-200.0,0.00018577,2]
[352575249,1739175058450,-200.0,0.00018577,2]
[352575250,1739175058460,-200.0,0.00018577,2]
[352575251,1739175058469,-200.0,0.00018577,2]
[352575252,1739175058478,-200.0,0.00018577,2]
[352575253,1739175058487,-200.0,0.00018577,2]
[352575254,1739175058496,-200.0,0.00018577,2]
[352575255,1739175058505,-200.0,0.00018577,2]
[352575256,1739175058515,-200.0,0.00018577,2]
[352575257,1739175058524,-200.0,0.00018577,2]
[352575258,1739175058533,-200.0,0.00018577,2]
[352575259,1739175058542,-200.0,0.00018577,2]
[352575260,1739175058551,-200.0,0.00018577,2]
[352575261,1739175058560,-200.0,0.00018577,2]
[352575262,1739175058569,-200.0,0.00018577,2]
[352575263,1739175058578,-200.0,0.00018577,2]
[352575264,1739175058587,-200.0,0.00018577,2]
[352575265,1739175058596,-200.0,0.00018577,2]
[352575266,1739175058604,-200.0,0.00018577,2]
[352575267,1739175058613,-200.0,0.00018577,2]
[352575268,1739175058623,-200.0,0.00018577,2]
[352575269,1739175058631,-208.0,0.00018577,2]
[352575270,1739175058641,-500.0,0.00018589,2]
[352575271,1739175058650,-3390.39,0.000186,2]
[352575272,1739175058659,-154.54,0.000186,2]
[352575273,1739175058668,-154.54,0.000186,2]
[352575274,1739175058677,-20789.55065854,0.0001862,2]
[352575275,1739175058687,-1305.19,0.0001863,4]
[352575276,1739175058696,-214.0,0.0001865,2]
[352575277,1739175058705,-272.83143,0.00018688,7]
[352575278,1739175058715,-500.0,0.00018689,2]
[352575279,1739175058724,-2000.0,0.00018751,2]
[352575280,1739175058734,-20789.55065854,0.0001876,2]
[352575281,1739175058743,-500.0,0.00018789,2]
[352575282,1739175058752,-151.0,0.00018797,2]
[352575283,1739175058762,-1132.65944423,0.00018797,2]
[352575284,1739175058771,-12921.16989088,0.00018797,2]
[352575285,1739175058782,-9681.50505465,0.00018797,2]
[352575286,1739175058791,-503.21361119,0.00018797,2]
[352575287,1739175058801,-1212.0,0.000188,2]
[352575288,1739175058810,-121425.89088992,0.000188,2]
[352575289,1739175058819,-272.83143,0.00018888,7]
[352575290,1739175058829,-500.0,0.00018889,2]
[352575291,1739175058839,-1178447.03548689,0.00018897,4]
[352575292,1739175058848,-188072.54217188,0.00018897,4]
[352575293,1739175058859,-151.0,0.00018897,2]
[352575294,1739175058868,-396.356462,0.00018897,2]
[352575295,1739175058877,-396.356462,0.00018897,2]
[352575296,1739175058887,-1227.09778965,0.000189,2]
[352575297,1739175058902,-1227.09778965,0.000189,2]
[352575298,1739175058912,-1227.09778965,0.000189,2]
[352575299,1739175058922,-1227.09778965,0.000189,2]
[352575300,1739175058931,-1227.09778965,0.000189,2]
[352575301,1739175058940,-1227.09778965,0.000189,2]
[352575302,1739175058950,-1227.09778965,0.000189,2]
[352575303,1739175058959,-1227.09778965,0.000189,2]
[352575304,1739175058968,-1227.09778965,0.000189,2]
[352575305,1739175058977,-1227.09778965,0.000189,2]
[352575306,1739175058987,-1227.09778965,0.000189,2]
[352575307,1739175058997,-1227.09778965,0.000189,2]
[352575308,1739175059006,-1227.09778965,0.000189,2]
[352575309,1739175059016,-1227.09778965,0.000189,2]
[352575310,1739175059025,-1227.09778965,0.000189,2]
[352575311,1739175059035,-1227.09778965,0.000189,2]
[352575312,1739175059044,-1227.09778965,0.000189,2]
[352575313,1739175059054,-1227.09778965,0.000189,2]
[352575314,1739175059064,-1227.09778965,0.000189,2]
[352575315,1739175059073,-1227.09,0.000189,2]
[352575316,1739175059083,-1280.05889379,0.000189,2]
[352575317,1739175059092,-1280.05889379,0.000189,2]